fUSD/lending_fUSD_20240818
["ID","MTS","AMOUNT","RATE_DAILY","PERIOD"]
[335194504,1723971038542,-150.0,0.000109,2]
[335194505,1723971038551,-150.0,0.000109,2]
[335194506,1723971038560,-300.0,0.000109,2]
[335194508,1723971038570,-150.0,0.000109,2]
[335194509,1723971038578,-151.57,0.000109,2]
[335194511,1723971038587,-713.16,0.000109,2]
[335194512,1723971038596,-300.0,0.000109,2]
[335194514,1723971038605,-439.04,0.000109,2]
[335194516,1723971038614,-835.92,0.000109,2]
[335194517,1723971038623,-140.17594377,0.000109,2]
[335194519,1723971038636,-391.16405623,0.000109,2]
[335194520,1723971038644,-150.0,0.000109,2]
[335194522,1723971038653,-150.0,0.000109,2]
[335194523,1723971038662,-150.0,0.000109,2]
[335194525,1723971038672,-125.62265994,0.000109,2]
[335194527,1723971038687,-24.37734006,0.000109,2]
[335194529,1723971038696,-150.0,0.000109,2]
[335194530,1723971038706,-356.76,0.000109,2]
[335194532,1723971038716,-421.32,0.000109,2]
[335194533,1723971038725,-835.92,0.000109,2]
[335194535,1723971038734,-150.0,0.000109,2]
[335194536,1723971038744,-531.34,0.000109,2]
[335194538,1723971038753,-588.61245773,0.000109,2]
[335194539,1723971038762,-186.79076405,0.000109,2]
[335194541,1723971038772,-186.6480781,0.000109,2]
[335194542,1723971038781,-150.0,0.00010924,2]
[335194544,1723971038791,-12871.83908802,0.0001093,2]
[335194546,1723971038802,-34366.42235553,0.0001093,2]
[335194547,1723971038811,-2000.0,0.00010935,2]
[335194549,1723971038821,-200.0,0.00010935,2]
[335194550,1723971038830,-200.0,0.00010935,2]
[335194552,1723971038840,-200.0,0.00010935,2]
[335194554,1723971038849,-150.0,0.00010939,2]
[335194555,1723971038860,-65800.0,0.0001094,2]
[335194557,1723971038869,-185.34119546,0.00010947,2]
[335194558,1723971038879,-500.0,0.00010949,2]
[335194560,1723971038888,-500.0,0.00010949,2]
[335194562,1723971038897,-500.0,0.00010949,2]
[335194563,1723971038906,-500.0,0.00010949,2]
[335194565,1723971038915,-500.0,0.00010949,2]
[335194567,1723971038924,-500.0,0.00010949,2]
[335194568,1723971038934,-500.0,0.00010949,2]
[335194570,1723971038944,-500.0,0.00010949,2]
[335194572,1723971038953,-500.0,0.00010949,2]
[335194573,1723971038963,-500.0,0.00010949,2]
[335194575,1723971038972,-500.0,0.00010949,2]
[335194577,1723971038981,-500.0,0.00010949,2]
[335194578,1723971038990,-500.0,0.00010949,2]
[335194580,1723971038999,-500.0,0.00010949,2]
[335194582,1723971039008,-500.0,0.00010949,2]
[335194583,1723971039018,-500.0,0.00010949,2]
[335194585,1723971039027,-65046.31492943,0.0001095,3]
[335194587,1723971039043,-958.6668116,0.0001095,3]
[335194589,1723971039058,-1803.52865084,0.0001095,3]
[335194591,1723971039069,-570.23685725,0.0001095,3]
[335194593,1723971039084,-3163.29177813,0.0001095,3]
[335194595,1723971039095,-1612.92826726,0.0001095,3]
[335194597,1723971039106,-2330.03270549,0.0001095,3]
[335194598,1723971039115,-250.0,0.00010959,2]
[335194600,1723971039125,-543.50517286,0.0001096,2]
[335194602,1723971039137,-1915.0,0.00010962,2]
[335194603,1723971039146,-249.622,0.00010962,2]
[335194605,1723971039155,-1673.0,0.00010962,2]
[335194607,1723971039164,-5843.0,0.00010962,2]
[335194608,1723971039173,-1204.0,0.00010962,2]
[335194610,1723971039183,-3726.0,0.00010962,2]
[335194612,1723971039192,-289.0,0.00010962,2]
[335194613,1723971039202,-13144.54092443,0.00010962,2]
[335194671,1723971040052,-976.22792937,0.00010962,2]
[335194674,1723971040063,-3054.19398321,0.00010962,2]
[335194688,1723971040217,-348.3446214,0.00010962,2]
[335194690,1723971040229,-4237.69254159,0.00010962,2]
[335194692,1723971040239,-1000.0,0.00010968,2]
[335194694,1723971040249,-169.68,0.00010968,2]
[335194696,1723971040259,-150.0,0.00010979,2]
[335194698,1723971040269,-475.18376273,0.00010986,2]
[335194701,1723971040281,-24.81623727,0.00010986,2]
[335194703,1723971040291,-355.12600863,0.00010986,2]
[335194713,1723971040385,-144.87399137,0.00010986,2]
[335194715,1723971040394,-500.0,0.00010986,2]
[335194717,1723971040403,-500.0,0.00010986,2]
[335194719,1723971040413,-500.0,0.00010986,2]
[335194721,1723971040422,-500.0,0.00010986,2]
[335194723,1723971040431,-500.0,0.00010986,2]
[335194725,1723971040440,-500.0,0.00010986,2]
[335194727,1723971040450,-500.0,0.00010986,2]
[335194729,1723971040459,-500.0,0.00010986,2]
[335194731,1723971040468,-500.0,0.00010986,2]
[335194733,1723971040477,-500.0,0.00010986,2]
[335194735,1723971040487,-500.0,0.00010986,2]
[335194737,1723971040496,-500.0,0.00010986,2]
[335194739,1723971040505,-500.0,0.00010986,2]
[335194741,1723971040514,-500.0,0.00010986,2]
[335194743,1723971040523,-500.0,0.00010986,2]
[335194744,1723971040532,-500.0,0.00010986,2]
[335194747,1723971040542,-31837.34192415,0.00010986,2]
[335194749,1723971040554,-688.33520526,0.00010986,2]
[335194989,1723971042897,-150.0,0.000109,2]
[335194992,1723971042907,-319.6500491,0.00010986,2]
[335195015,1723971043059,-150391.67282149,0.00010986,2]
[335195017,1723971043070,-175.55900126,0.00010986,2]
[335195019,1723971043080,-486.48,0.00010989,2]
[335195021,1723971043090,-500.0,0.00010989,2]
[335195023,1723971043099,-500.0,0.00010989,2]
[335195025,1723971043109,-528.74279922,0.00010989,2]
[335195027,1723971043118,-500.0,0.00010989,2]
[335195029,1723971043131,-500.0,0.00010989,2]
[335195031,1723971043142,-500.0,0.00010989,2]
[335195033,1723971043151,-500.0,0.00010989,2]
[335195035,1723971043161,-150.0,0.00010989,2]
[335195037,1723971043171,-500.0,0.00010989,2]
[335195039,1723971043181,-633.94493513,0.00010989,2]
[335195041,1723971043190,-486.73954161,0.00010989,2]
[335195043,1723971043200,-519.35218653,0.00010989,2]
[335195045,1723971043210,-500.0,0.00010989,2]
[335195047,1723971043220,-552.43,0.00010989,2]
[335195049,1723971043229,-537.82150392,0.00010989,2]
[335195051,1723971043238,-500.0,0.00010989,2]
[335195053,1723971043248,-413.3316342,0.00010989,2]
[335195055,1723971043257,-346.34323869,0.00010989,2]
[335195057,1723971043267,-55670.09512466,0.0001099,3]
[335195059,1723971043284,-78085.67221364,0.0001099,2]
[335195062,1723971043304,-673.14206966,0.0001099,2]
[335195065,1723971043316,-3898.14041674,0.0001099,2]
[335195067,1723971043327,-27908.50961047,0.0001099,2]
[335195323,1723971045930,-303.83432888,0.00010852,2]
[335195326,1723971045939,-356.76,0.000109,2]
[335195328,1723971045949,-300.0,0.000109,2]
[335195331,1723971045958,-531.34,0.000109,2]
[335195333,1723971045969,-835.92,0.000109,2]
[335195336,1723971045980,-16590.22346141,0.0001099,2]
[335195338,1723971045989,-29998.16794442,0.0001099,2]
[335195340,1723971046003,-2828.05256361,0.0001099,2]
[335195342,1723971046013,-578.8775394,0.00010998,2]
[335195344,1723971046023,-500.0,0.00010998,2]
[335195346,1723971046033,-4608.95989699,0.00010998,2]
[335195348,1723971046047,-42.24146301,0.00010998,2]
[335195350,1723971046057,-2676.2358202,0.00010998,2]
[335195352,1723971046067,-1187.1374212,0.00010999,3]
[335195354,1723971046076,-37918.95348646,0.00010999,2]
[335195357,1723971046091,-11537.57862452,0.00010999,2]
[335195359,1723971046105,-3895.98548099,0.00010999,2]
[335195363,1723971046139,-5876.5,0.00010999,2]
[335195366,1723971046150,-320.26614088,0.00010999,2]
[335195368,1723971046161,-1078.57073008,0.00010999,2]
[335195370,1723971046177,-1790.38272027,0.00010999,2]
[335195868,1723971243705,384.36,8.219e-05,2]
[335195880,1723971619588,949.4543693,9.962e-05,2]
[335195881,1723971682393,3618.23,9.946e-05,2]
[335195883,1723971696671,175.47,9.954e-05,2]
[335195884,1723971708973,365.14,8.219e-05,2]
[335195898,1723971990252,1000.0,9.905e-05,2]
[335195928,1723972232078,-178.32,9.991e-05,2]
[335195929,1723972232088,-300.0,9.999e-05,2]
[335195930,1723972232099,-500.0,0.0001,2]
[335195931,1723972232109,-309.33,0.0001,2]
[335195932,1723972232120,-500.0,0.0001,2]
[335195933,1723972232129,-500.0,0.0001,2]
[335195934,1723972232139,-500.0,0.0001,2]
[335195935,1723972232148,-227.71,0.0001,2]
[335195936,1723972232158,-550.0,0.0001,2]
[335195937,1723972232167,-338.5425176,0.0001,2]
[335195938,1723972232177,-365.14,0.00010473,2]
[335195939,1723972232186,-150.0,0.00010489,2]
[335195940,1723972232195,-9058.67091685,0.0001049,2]
[335195941,1723972232205,-200.02,0.0001049,2]
[335195942,1723972232214,-200.02,0.0001049,2]
[335195943,1723972232223,-200.02,0.0001049,2]
[335195944,1723972232233,-200.02,0.0001049,2]
[335195945,1723972232242,-200.02,0.0001049,2]
[335195946,1723972232251,-200.02,0.0001049,2]
[335195947,1723972232261,-200.02,0.0001049,2]
[335195948,1723972232270,-200.02,0.0001049,2]
[335195949,1723972232279,-200.02,0.0001049,2]
[335195950,1723972232289,-200.02,0.0001049,2]
[335195951,1723972232298,-200.02,0.0001049,2]
[335195952,1723972232307,-200.02,0.0001049,2]
[335195953,1723972232317,-200.02,0.0001049,2]
[335195954,1723972232326,-200.02,0.0001049,2]
[335195955,1723972232335,-200.02,0.0001049,2]
[335195956,1723972232345,-200.02,0.0001049,2]
[335195957,1723972232354,-200.02,0.0001049,2]
[335195958,1723972232364,-200.02,0.0001049,2]
[335195959,1723972232373,-200.02,0.0001049,2]
[335195960,1723972232382,-200.02,0.0001049,2]
[335195961,1723972232391,-200.02,0.0001049,2]
[335195962,1723972232400,-200.02,0.0001049,2]
[335195963,1723972232415,-200.02,0.0001049,2]
[335195964,1723972232426,-200.02,0.0001049,2]
[335195965,1723972232435,-200.02,0.0001049,2]
[335195966,1723972232444,-200.02,0.0001049,2]
[335195967,1723972232454,-200.02,0.0001049,2]
[335195968,1723972232463,-200.02,0.0001049,2]
[335195969,1723972232472,-200.02,0.0001049,2]
[335195970,1723972232481,-200.02,0.0001049,2]
[335195971,1723972232490,-200.02,0.0001049,2]
[335195972,1723972232499,-200.02,0.0001049,2]
[335195973,1723972232508,-200.02,0.0001049,2]
[335195974,1723972232517,-200.02,0.0001049,2]
[335195975,1723972232526,-200.02,0.0001049,2]
[335195976,1723972232535,-200.02,0.0001049,2]
[335195977,1723972232545,-200.02,0.0001049,2]
[335195978,1723972232555,-200.02,0.0001049,2]
[335195979,1723972232566,-200.02,0.0001049,2]
[335195980,1723972232575,-200.02,0.0001049,2]
[335195981,1723972232584,-200.02,0.0001049,2]
[335195982,1723972232592,-200.02,0.0001049,2]
[335195983,1723972232602,-200.02,0.0001049,2]
[335195984,1723972232614,-83271.96792127,0.000105,2]
[335195985,1723972232630,-719.4241955,0.000105,2]
[335195986,1723972232642,-4041.6921742,0.000105,2]
[335195987,1723972232653,-295.315,0.000105,2]
[335195988,1723972232664,-41262.24459102,0.000105,2]
[335195989,1723972232675,-365.35210606,0.000105,2]
[335195990,1723972232690,-14628.54401195,0.000105,2]
[335195991,1723972232699,-1297.98969561,0.00010713,2]
[335195992,1723972232708,-915.71313759,0.00010713,2]
[335195993,1723972232718,-200.02,0.00010739,2]
[335195994,1723972232728,-538.67335774,0.00010749,2]
[335195995,1723972232737,-499.99,0.00010749,2]
[335195996,1723972232747,-200.02,0.00010755,2]
[335195997,1723972232756,-1545.79953615,0.00010765,2]
[335195998,1723972232766,-1656.25499804,0.0001078,2]
[335195999,1723972232775,-228.64475842,0.00010799,2]
[335196000,1723972232784,-1500.0,0.00010838,2]
[335196001,1723972232794,-155.0,0.00010852,2]
[335196002,1723972232803,-949.4543693,0.00010861,2]
[335196003,1723972232812,-155.0,0.00010861,2]
[335196004,1723972232821,-200.02,0.00010868,2]
[335196005,1723972232831,-200.02,0.00010868,2]
[335196006,1723972232839,-200.02,0.0001088,2]
[335196007,1723972232849,-2816.0,0.00010886,2]
[335196008,1723972232858,-200.02,0.00010889,2]
[335196009,1723972232867,-200.02,0.0001089,2]
[335196010,1723972232878,-200.02,0.0001089,2]
[335196011,1723972232887,-200.02,0.0001089,2]
[335196012,1723972232897,-200.02,0.0001089,2]
[335196013,1723972232906,-200.02,0.0001089,2]
[335196014,1723972232915,-200.02,0.0001089,2]
[335196015,1723972232925,-200.02,0.0001089,2]
[335196016,1723972232935,-200.02,0.0001089,2]
[335196017,1723972232944,-200.02,0.0001089,2]
[335196018,1723972232953,-200.02,0.0001089,2]
[335196019,1723972232963,-200.02,0.0001089,2]
[335196020,1723972232972,-200.02,0.0001089,2]
[335196021,1723972232982,-200.02,0.0001089,2]
[335196022,1723972232991,-200.02,0.0001089,2]
[335196023,1723972233000,-200.02,0.0001089,2]
[335196024,1723972233009,-200.02,0.0001089,2]
[335196025,1723972233019,-200.02,0.0001089,2]
[335196026,1723972233028,-200.02,0.0001089,2]
[335196027,1723972233037,-200.02,0.0001089,2]
[335196028,1723972233047,-200.02,0.0001089,2]
[335196029,1723972233057,-200.02,0.0001089,2]
[335196030,1723972233067,-200.02,0.0001089,2]
[335196031,1723972233076,-195.01277842,0.00010899,2]
[335196032,1723972233086,-246.901,0.000109,2]
[335196033,1723972233095,-289.9408,0.000109,2]
[335196034,1723972233105,-113302.3874,0.000109,2]
[335196035,1723972233114,-150.0,0.000109,2]
[335196036,1723972233128,-421.32,0.000109,2]
[335196037,1723972233138,-317.61944198,0.000109,2]
[335196038,1723972233148,-195.01277842,0.000109,2]
[335196039,1723972233159,-207.07,0.00010959,2]
[335196040,1723972233168,-172.56,0.00010959,2]
[335196041,1723972233178,-862.83,0.00010959,2]
[335196042,1723972233188,-250.0,0.00010959,2]
[335196043,1723972233199,-1013.3,0.0001099,2]
[335196044,1723972233209,-202.99768405,0.00010993,2]
[335196045,1723972233219,-151.06328511,0.00010997,2]
[335196046,1723972233229,-1315.9000931,0.00010998,2]
[335196047,1723972233238,-2617.4139806,0.00010998,2]
[335196048,1723972233248,-10570.0243038,0.00010998,2]
[335196049,1723972233258,-36279.82897975,0.00010999,2]
[335196050,1723972233268,-492.86681366,0.00010999,2]
[335196051,1723972233278,-162.73010278,0.00010999,2]
[335196052,1723972233288,-300.11351407,0.00010999,2]
[335196053,1723972233298,-246.68794645,0.00010999,2]
[335196054,1723972233308,-3324.79871739,0.00010999,2]
[335196055,1723972233318,-2000.0,0.00010999,2]
[335196056,1723972233329,-5774.46236884,0.00010999,2]
[335196057,1723972233339,-200.0,0.00010999,2]
[335196058,1723972233349,-500.0,0.00010999,2]
[335196059,1723972233359,-500.0,0.00010999,2]
[335196060,1723972233369,-255.44501899,0.00010999,2]
[335196061,1723972233378,-500.0,0.00010999,2]
[335196062,1723972233388,-451.30341492,0.00010999,2]
[335196063,1723972233398,-500.0,0.00010999,2]
[335196064,1723972233407,-500.0,0.00010999,2]
[335196065,1723972233417,-500.0,0.00010999,2]
[335196066,1723972233427,-500.0,0.00010999,2]
[335196067,1723972233436,-476.58653095,0.00010999,2]
[335196068,1723972233446,-500.0,0.00010999,2]
[335196069,1723972233455,-500.0,0.00010999,2]
[335196070,1723972233465,-500.0,0.00010999,2]
[335196071,1723972233474,-500.0,0.00010999,2]
[335196072,1723972233483,-610.76563381,0.00010999,2]
[335196073,1723972233493,-500.0,0.00010999,2]
[335196074,1723972233502,-500.0,0.00010999,2]
[335196075,1723972233512,-150.91933829,0.00010999,2]
[335196076,1723972233521,-372.77750102,0.00010999,2]
[335196077,1723972233530,-500.0,0.00010999,2]
[335196078,1723972233539,-500.0,0.00010999,2]
[335196079,1723972233549,-500.0,0.00010999,2]
[335196080,1723972233558,-432.73910814,0.00010999,2]
[335196081,1723972233567,-200.0,0.00010999,2]
[335196082,1723972233577,-22353.47586325,0.00010999,2]
[335196083,1723972233586,-500.0,0.00010999,2]
[335196084,1723972233596,-591.50832663,0.00010999,2]
[335196085,1723972233606,-233.58435,0.00010999,2]
[335196086,1723972233617,-420.0,0.00010999,2]
[335196087,1723972233626,-200.0,0.00010999,2]
[335196088,1723972233636,-175.55900127,0.00011,2]
[335196089,1723972233645,-69849.99188233,0.00011,2]
[335196090,1723972233659,-3125.27043744,0.00011,2]
[335196093,1723972238221,-155.0,0.00010861,2]
[335196094,1723972238230,-1445.0,0.00011,2]
[335196095,1723972238242,-111429.34479412,0.00011,2]
[335196096,1723972238253,-534.02114835,0.00011,2]
[335196097,1723972238265,-976.96776414,0.00011,2]
[335196098,1723972238276,-3742.70217563,0.00011,2]
[335196099,1723972238292,-6084.77401869,0.00011,2]
[335196100,1723972238303,-2670.75274733,0.00011,2]
[335196101,1723972238315,-4285.34123519,0.00011,2]
[335196102,1723972238326,-2864.18590087,0.00011,2]
[335196103,1723972238337,-280.99862601,0.00011,2]
[335196104,1723972238349,-828.69961957,0.00011,2]
[335196105,1723972238363,-12608.96321469,0.00011,2]
[335196106,1723972238374,-1356.00596654,0.00011,2]
[335196257,1723972240272,-324.73953875,0.00011,2]
[335196269,1723972240386,-795.76982864,0.00011,2]
[335196276,1723972240444,-2936.22,0.00011,2]
[335196278,1723972240457,-3756.6679994,0.00011,2]
[335196281,1723972240470,-1480.21316393,0.00011,2]
[335196291,1723972240561,-1021.90996139,0.00011,2]
[335196293,1723972240573,-489.97436818,0.00011,2]
[335196295,1723972240584,-6538.66543029,0.00011,2]
[335196300,1723972240620,-5894.4,0.00011,2]
[335196553,1723972243325,-359988.00357262,0.00011,2]
[335196555,1723972243335,-1000.0,0.00011,2]
[335196557,1723972243345,-1000.0,0.00011,3]
[335196559,1723972243355,-1000.0,0.00011,4]
[335196561,1723972243365,-1339630.72034685,0.00011,2]
[335196564,1723972243382,-29943.5672127,0.00011,2]
[335196636,1723972244067,-353.4100011,0.00011,2]
[335196639,1723972244079,-4490.73615361,0.00011,2]
[335196851,1723972246187,-3724.57954624,0.00011,2]
[335196857,1723972246248,-873.80203649,0.00011,2]
[335196860,1723972246260,-267.22567297,0.00011,2]
[335196862,1723972246272,-5891.9,0.00011,2]
[335196864,1723972246283,-653580.35596646,0.00011,2]
[335196866,1723972246294,-606.13570382,0.00011,2]
[335196868,1723972246306,-128645.95580588,0.00011,2]
[335196871,1723972246318,-6113.08888227,0.00011,2]
[335196873,1723972246330,-2746.17571354,0.00011,2]
[335196875,1723972246341,-1378.80283563,0.00011,2]
[335196880,1723972246383,-837.1615839,0.00011,2]
[335196882,1723972246394,-646.44815476,0.00011,2]
[335196888,1723972246441,-264.33684103,0.00011,2]
[335198329,1723972280008,500.0,8.22e-05,2]
[335198330,1723972280142,500.0,9.275e-05,2]
[335198331,1723972281460,500.0,8.22e-05,2]
[335198332,1723972283051,500.0,9.59e-05,2]
[335198334,1723972306911,500.0,9.275e-05,2]
[335198335,1723972325336,500.0,9.275e-05,2]
[335198336,1723972341069,401.49,9.092e-05,2]
[335198343,1723972799074,381.41,8.219e-05,2]
[335198346,1723972897698,186.25460476,9.965e-05,2]
[335198349,1723972997154,23890.0,9.966e-05,2]
[335198350,1723973009643,332.79,9.963e-05,2]
[335198352,1723973026857,800.0,9.973e-05,2]
[335198354,1723973105282,150.0,9.888e-05,2]
[335198356,1723973109093,150.0,9.888e-05,2]
[335198361,1723973118041,150.0,9.888e-05,2]
[335198362,1723973119703,250.0,9.915e-05,2]
[335198363,1723973136629,461.79468298,9.5e-05,2]
[335198364,1723973166700,192.82,9.753e-05,2]
[335198366,1723973183183,266.37,9.755e-05,2]
[335198391,1723973302845,362.33,8.219e-05,2]
[335198417,1723973368175,178.32,9.655e-05,2]
[335198423,1723973432598,-150.0,9.988e-05,2]
[335198424,1723973432608,-212.92,9.997e-05,2]
[335198425,1723973432619,-150.0,9.999e-05,2]
[335198426,1723973432635,-550.0,0.0001,2]
[335198427,1723973432645,-38527.0,0.0001,2]
[335198428,1723973432654,-435.67228527,0.00010001,2]
[335198429,1723973432664,-528.94524896,0.00010026,2]
[335198430,1723973432674,-150.0,0.00010087,2]
[335198431,1723973432683,-245.05531806,0.000101,2]
[335198432,1723973432692,-200.0,0.00010146,2]
[335198433,1723973432702,-150.0,0.00010162,2]
[335198434,1723973432711,-150.0,0.00010187,2]
[335198435,1723973432720,-150.0,0.00010287,2]
[335198437,1723973432730,-150.0,0.00010387,2]
[335198439,1723973432739,-2626.6483,0.000104,2]
[335198440,1723973432748,-421.32,0.000104,2]
[335198441,1723973432758,-421.32,0.000104,2]
[335198442,1723973432767,-150.0,0.000104,2]
[335198443,1723973432776,-420.63,0.000104,2]
[335198444,1723973432785,-1060.83,0.000104,2]
[335198445,1723973432794,-150.0,0.000104,2]
[335198446,1723973432803,-240.62,0.000104,2]
[335198447,1723973432812,-150.0,0.000104,2]
[335198448,1723973432822,-150.0,0.000104,2]
[335198449,1723973432831,-150.0,0.000104,2]
[335198450,1723973432840,-301.12,0.000104,2]
[335198451,1723973432849,-150.0,0.00010437,2]
[335198452,1723973432858,-150.0,0.00010437,2]
[335198453,1723973432868,-362.33,0.00010462,2]
[335198454,1723973432878,-453.93284773,0.00010471,2]
[335198455,1723973432888,-531.34,0.00010478,2]
[335198456,1723973432897,-356.76,0.00010478,2]
[335198457,1723973432906,-426.67,0.00010478,2]
[335198458,1723973432916,-531.34,0.00010478,2]
[335198459,1723973432925,-356.76,0.00010478,2]
[335198460,1723973432934,-426.67,0.00010478,2]
[335198461,1723973432943,-426.67,0.00010478,2]
[335198462,1723973432952,-531.34,0.00010478,2]
[335198463,1723973432961,-356.76,0.00010478,2]
[335198464,1723973432971,-426.67,0.00010478,2]
[335198465,1723973432980,-356.76,0.00010478,2]
[335198466,1723973432989,-426.67,0.00010478,2]
[335198467,1723973432998,-424.67,0.00010478,2]
[335198468,1723973433008,-150.0,0.00010487,2]
[335198469,1723973433017,-150.0,0.00010587,2]
[335198470,1723973433026,-500.0,0.00010645,2]
[335198471,1723973433036,-150.0,0.00010687,2]
[335198472,1723973433046,-1258.20462876,0.00010699,2]
[335198473,1723973433055,-150.0,0.00010712,2]
[335198474,1723973433064,-23396.86546269,0.00010752,2]
[335198477,1723973438321,-657.67500001,0.00010752,2]
[335198478,1723973438546,-351.02300115,0.00010752,2]
[335198645,1723973440638,-2701.65683615,0.00010752,2]
[335198647,1723973440648,-150.0,0.00010787,2]
[335198649,1723973440657,-299.99,0.00010799,2]
[335198651,1723973440667,-512.72019683,0.00010799,2]
[335198653,1723973440676,-340.3042,0.000108,2]
[335198655,1723973440686,-1000.0,0.000108,2]
[335198657,1723973440696,-260.0746,0.000108,2]
[335198659,1723973440706,-1729.318,0.000108,2]
[335198661,1723973440716,-204.55476557,0.00010861,2]
[335198663,1723973440726,-150.0,0.00010886,2]
[335198665,1723973440736,-457.79957147,0.0001089,2]
[335198667,1723973440746,-202.99768405,0.0001089,2]
[335198669,1723973440756,-210.61380075,0.00010899,2]
[335198671,1723973440766,-210.61380069,0.00010899,2]
[335198673,1723973440776,-210.61380069,0.00010899,2]
[335198675,1723973440786,-210.61380069,0.00010899,2]
[335198676,1723973440795,-210.61380069,0.00010899,2]
[335198678,1723973440805,-210.61380069,0.00010899,2]
[335198680,1723973440814,-210.61380069,0.00010899,2]
[335198682,1723973440823,-210.61380069,0.00010899,2]
[335198684,1723973440833,-210.61380069,0.00010899,2]
[335198686,1723973440842,-8991.11558082,0.000109,2]
[335198688,1723973440857,-165940.33941918,0.000109,2]
[335198690,1723973440866,-169.12638698,0.000109,2]
[335198692,1723973440879,-3575.0283,0.000109,2]
[335198694,1723973440890,-3317.5461,0.000109,2]
[335198696,1723973440900,-210.61380069,0.000109,2]
[335198698,1723973440909,-7500.0,0.000109,2]
[335198699,1723973440919,-1210.0,0.000109,2]
[335198701,1723973440928,-234.27837405,0.000109,2]
[335198703,1723973440939,-153.85974612,0.000109,2]
[335198705,1723973440948,-317.61944198,0.000109,2]
[335198707,1723973440958,-186.79076404,0.000109,2]
[335198709,1723973440967,-155.0,0.00010949,2]
[335198711,1723973440976,-477.08654469,0.00010949,2]
[335198713,1723973440986,-250.0,0.00010959,2]
[335198714,1723973440995,-500.0,0.0001096,2]
[335198716,1723973441005,-172.51,0.0001097,2]
[335198718,1723973441014,-150.0,0.00010986,2]
[335198720,1723973441024,-150.0,0.00010986,2]
[335198722,1723973441033,-150.0,0.00010986,2]
[335198724,1723973441043,-949.4543693,0.00010989,2]
[335198726,1723973441052,-150.0,0.0001099,2]
[335198728,1723973441062,-1895.0,0.0001099,2]
[335198730,1723973441071,-551.0,0.0001099,2]
[335198732,1723973441081,-1178.0,0.0001099,2]
[335198734,1723973441090,-247.0,0.0001099,2]
[335198736,1723973441099,-3292.0,0.0001099,2]
[335198738,1723973441109,-1924.0,0.0001099,2]
[335198740,1723973441119,-1257.0,0.0001099,2]
[335198742,1723973441131,-622.0,0.0001099,2]
[335198744,1723973441140,-1542.0,0.0001099,2]
[335198746,1723973441149,-647.223,0.0001099,2]
[335198747,1723973441159,-1137.693,0.0001099,2]
[335198749,1723973441169,-1975.7688966,0.00010998,2]
[335198751,1723973441179,-212.8315477,0.00010998,2]
[335198753,1723973441188,-26395.16206186,0.00010999,2]
[335198756,1723973441203,-395.37958466,0.00010999,2]
[335198758,1723973441214,-286.94788637,0.00010999,2]
[335198760,1723973441226,-599.07,0.00010999,2]
[335198987,1723973443632,-165.048,0.0001099,2]
[335198989,1723973443642,-880.092,0.00010999,2]
[335199053,1723973444458,-1057.28,0.00010999,2]
[335199162,1723973446305,-1073.61091901,0.00010999,2]
[335199168,1723973446369,-539.09637134,0.00010999,2]
[335199170,1723973446381,-1647.40367444,0.00010999,2]
[335199187,1723973446554,-519.94092033,0.00010999,2]
[335199189,1723973446567,-929.49487417,0.00010999,2]